bitfinex-derivatives/quotes_SOLF0:USTF0_20250424
["timestamp","ask_amount","ask_price","bid_price","bid_amount"]
[1745512544204,25.76,151.33,151.25,22.52007162]
[1745512544410,25.76,151.33,151.27,6.6076]
[1745512544604,25.76,151.33,151.26,25.76]
[1745512545610,25.76,151.33,151.23,25.76]
[1745512546111,25.76,151.33,151.24,6.6091]
[1745512546413,25.76,151.33,151.23,25.76]
[1745512546603,6.6082,151.27,151.23,32.3692]
[1745512546802,6.6082,151.27,151.23,25.76]
[1745512547107,25.76,151.33,151.23,25.76]
[1745512547312,25.76,151.33,151.24,1.65211498]
[1745512547906,25.76,151.33,151.25,22.52007162]
[1745512548713,25.76,151.33,151.26,1.65211498]
[1745512548915,25.76,151.33,151.27,6.6076]
[1745512550313,6.6068,151.3,151.27,6.6076]
[1745512550514,6.6068,151.3,151.28,1.65188612]
[1745512550714,6.6068,151.3,151.27,6.6076]
[1745512550910,6.6063,151.31,151.28,6.6074]
[1745512551215,6.6063,151.31,151.29,1.65175702]
[1745512551617,6.6066,151.3,151.29,1.65175702]
[1745512551816,25.76,151.33,151.25,22.52007162]
[1745512552115,6.6079,151.27,151.23,25.76]
[1745512552311,22.52007162,151.32,151.24,6.77891433]
[1745512552514,22.52007162,151.32,151.23,25.76]
[1745512553010,22.52007162,151.32,151.23,32.3694]
[1745512553213,22.52007162,151.32,151.23,25.76]
[1745512553710,6.6078,151.28,151.23,25.76]
[1745512553916,25.76,151.33,151.23,25.76]
[1745512554116,25.76,151.33,151.25,22.52007162]
[1745512554413,25.76,151.33,151.26,6.79222379]
[1745512554613,25.76,151.33,151.27,8.44428945]
[1745512554814,25.76,151.33,151.28,13.39942379]
[1745512555009,25.76,151.33,151.29,6.78579859]
[1745512555206,6.6064,151.31,151.28,6.6072]
[1745512555410,27.6417,151.36,151.3,8.25866566]
[1745512555813,27.6417,151.36,151.3,1.65206566]
[1745512556010,27.6417,151.36,151.31,1.65206566]
[1745512556611,6.6054,151.33,151.31,1.65206566]
[1745512556916,27.6417,151.36,151.32,1.65206566]
[1745512557117,6.6051,151.34,151.32,1.65206566]
[1745512557518,6.6038,151.37,151.34,6.6048]
[1745512557813,31.6446,151.42,151.32,27.41206566]
[1745512558117,6.6036,151.37,151.35,1.65206566]
[1745512558819,25.76,151.41,151.36,1.65206566]
[1745512559919,25.76,151.41,151.38,6.6028]
[1745512560117,32.362,151.41,151.38,6.6028]
[1745512560720,6.6022,151.4,151.37,6.6033]
[1745512563520,6.6022,151.4,151.33,6.77978079]
[1745512563719,6.6019,151.41,151.34,6.77978079]
[1745512563921,27.6146,151.45,151.35,8.43072532]
[1745512564119,27.6146,151.45,151.36,32.53978079]
[1745512564324,27.6146,151.45,151.37,6.77978079]
[1745512564622,27.6146,151.45,151.38,6.77978079]
[1745512564824,6.6016,151.42,151.39,1.65094453]
[1745512565323,6.6016,151.42,151.39,8.25334453]
[1745512565621,27.6146,151.45,151.4,1.65094453]
[1745512565818,27.6146,151.45,151.41,6.6016]
[1745512566221,6.6007,151.44,151.41,6.6016]
[1745512566415,27.6146,151.45,151.36,48.28007162]
[1745512566716,27.6146,151.45,151.37,8.41938539]
[1745512566922,27.6146,151.45,151.38,6.76888667]
[1745512567123,27.6146,151.45,151.39,6.76888667]
[1745512567323,6.6016,151.42,151.37,1.65049872]
[1745512567524,6.6016,151.42,151.38,8.42368988]
[1745512567823,6.6016,151.42,151.39,13.37579116]
[1745512568034,6.6016,151.42,151.39,6.6026]
[1745512568223,6.6018,151.41,151.38,8.25339872]
[1745512568424,6.6018,151.41,151.39,1.65049872]
[1745512568621,6.6018,151.41,151.4,1.65049872]
[1745512570327,6.6015,151.42,151.4,1.65049872]
[1745512570729,27.6146,151.45,151.4,1.65049872]
[1745512571028,27.6146,151.45,151.41,1.65049872]
[1745512571429,27.6146,151.45,151.38,6.6029]
[1745512571727,6.6018,151.41,151.38,6.6029]
[1745512572029,6.6018,151.41,151.39,1.65077313]
[1745512572328,27.6146,151.45,151.39,1.65077313]
[1745512572627,27.6146,151.45,151.4,1.65077313]
[1745512573326,6.6007,151.44,151.41,1.65077313]
[1745512573529,27.6146,151.45,151.41,1.65077313]
[1745512573730,6.6007,151.44,151.41,8.25227313]
[1745512574230,6.6007,151.44,151.42,1.65077313]
[1745512574626,6.6009,151.43,151.42,1.65077313]
[1745512575028,3.8125,151.47,151.42,1.65077313]
[1745512575224,3.8125,151.47,151.42,15.70037177]
[1745512575426,13.1937,151.53,151.44,14.04959864]
[1745512575637,25.6,151.59,151.48,14.04959864]
[1745512575833,1.9559,151.57,151.49,6.7811923]
[1745512576133,1.9559,151.57,151.48,14.04959864]
[1745512576335,1.9559,151.57,151.5,1.65077313]
[1745512576638,6.5968,151.53,151.51,1.65077313]
[1745512576936,1.9559,151.57,151.49,6.5981]
[1745512577137,1.9559,151.57,151.48,14.04959864]
[1745512577339,1.9559,151.57,151.49,6.77126598]
[1745512577640,6.5963,151.54,151.47,22.4581375]
[1745512577840,6.5963,151.54,151.48,6.76344789]
[1745512578041,6.5963,151.54,151.49,6.76344789]
[1745512578244,1.9559,151.57,151.5,6.76344789]
[1745512578444,1.9559,151.57,151.49,1.6494582]
[1745512578642,6.5958,151.55,151.49,1.6494582]
[1745512578843,1.9559,151.57,151.5,8.40815649]
[1745512579044,1.9559,151.57,151.5,1.6494582]
[1745512579242,1.9559,151.57,151.51,8.2468582]
[1745512579438,1.9559,151.57,151.51,1.6494582]
[1745512579641,1.9559,151.57,151.49,25.6]
[1745512579841,1.9559,151.57,151.5,1.64948552]
[1745512580246,6.5971,151.52,151.5,8.24728552]
[1745512580449,1.9559,151.57,151.5,8.24728552]
[1745512580749,6.5968,151.53,151.5,8.24728552]
[1745512580944,6.5968,151.53,151.5,6.5978]
[1745512581144,6.5968,151.53,151.49,32.1981]
[1745512581448,6.5968,151.53,151.49,25.6]
[1745512581748,1.9559,151.57,151.49,25.6]
[1745512582142,24.4140375,151.57,151.47,22.4581375]
[1745512582342,24.4140375,151.57,151.48,1.64966729]
[1745512582542,6.5977,151.51,151.48,8.24816729]
[1745512582740,25.58,151.54,151.48,1.64966729]
[1745512582944,25.58,151.54,151.46,25.58]
[1745512583144,2.038,151.53,151.47,6.5991]
[1745512583547,6.5982,151.5,151.47,6.5991]
[1745512583746,25.58,151.54,151.47,22.4581375]
[1745512583949,25.58,151.54,151.48,1.64968562]
[1745512584249,6.5971,151.52,151.49,6.5979]
[1745512584650,6.5967,151.53,151.47,22.4581375]
[1745512584848,6.5967,151.53,151.5,6.5976]
[1745512585048,6.5967,151.53,151.47,22.4581375]
[1745512585450,32.1763,151.54,151.47,22.4581375]
[1745512585648,29.4314,151.57,151.47,22.4581375]
[1745512585848,29.4314,151.57,151.51,6.5971]
[1745512586043,29.4314,151.57,151.48,1.64947327]
[1745512586251,6.5959,151.55,151.48,1.64947327]
[1745512586548,29.4314,151.57,151.52,6.5969]
[1745512587255,29.4314,151.57,151.47,22.4581375]
[1745512587559,29.4314,151.57,151.48,1.64946093]
[1745512587853,6.5983,151.49,151.48,1.64946093]
[1745512588455,6.5988,151.48,151.44,403.0381375]
[1745512588757,25.58,151.52,151.46,6.5992]
[1745512588952,25.58,151.52,151.44,403.0381375]
[1745512589259,25.58,151.52,151.45,1.64984617]
[1745512589556,25.58,151.52,151.46,6.5992]
[1745512590756,6.5983,151.49,151.46,6.5992]
[1745512591653,6.598,151.5,151.47,6.5991]
[1745512591858,25.58,151.52,151.47,6.5991]
[1745512592153,6.5984,151.49,151.47,6.5991]
[1745512592361,6.5984,151.49,151.46,6.5994]
[1745512593158,25.58,151.52,151.44,403.0381375]
[1745512593159,6.598,151.5,151.44,403.0381375]
[1745512593361,25.58,151.52,151.47,6.5991]
[1745512593759,6.5981,151.5,151.47,6.5991]
[1745512594056,6.5981,151.5,151.44,403.0381375]
[1745512594453,6.5983,151.49,151.45,6.75988784]
[1745512594654,25.58,151.52,151.47,6.5989]
[1745512595162,25.58,151.52,151.44,403.0381375]
[1745512595358,2.0262,151.51,151.44,403.0381375]
[1745512595762,6.5985,151.49,151.44,403.0381375]
[1745512596060,6.5985,151.49,151.46,6.5992]
[1745512596862,6.5985,151.49,151.47,8.24884772]
[1745512597062,2.0262,151.51,151.47,8.24884772]
[1745512597357,2.0262,151.51,151.48,1.64974772]
[1745512597860,2.0262,151.51,151.44,403.0381375]
[1745512598061,6.5979,151.5,151.45,6.76867286]
[1745512598261,25.58,151.52,151.46,6.76867286]
[1745512598461,25.58,151.52,151.47,6.76867286]
[1745512598654,6.5977,151.51,151.48,6.5985]
[1745512599356,6.5979,151.5,151.48,6.5985]
[1745512599652,6.5979,151.5,151.49,1.6496875]
[1745512599955,32.1771,151.52,151.5,6.5976]
[1745512600163,25.58,151.52,151.49,1.6496875]
[1745512600363,27.32,151.55,151.5,1.6496875]
[1745512600962,27.32,151.55,151.51,1.6496875]
[1745512601759,3.8514,151.57,151.52,1.6496875]
[1745512602067,6.595,151.57,151.54,6.5959]
[1745512603164,6.595,151.57,151.55,1.6496875]
[1745512603465,6.595,151.57,151.56,1.6496875]
[1745512603771,25.28,151.61,151.56,1.6496875]
[1745512604161,39.3223475,151.61,151.56,1.6496875]
[1745512604361,39.3223475,151.61,151.57,1.6496875]
[1745512604867,6.5947,151.58,151.52,14.0423475]
[1745512605065,6.5947,151.58,151.53,6.77024336]
[1745512605266,25.28,151.61,151.54,20.81259086]
[1745512605566,6.5945,151.58,151.56,6.5952]
[1745512605965,6.5945,151.58,151.55,6.5956]
[1745512606159,6.5945,151.58,151.56,6.76520259]
[1745512606363,475.5,151.63,151.57,1.64884201]
[1745512606567,25.28,151.62,151.57,1.64884201]
[1745512606768,25.28,151.62,151.58,1.64884201]
[1745512607268,25.28,151.62,151.54,14.0423475]
[1745512607468,25.28,151.62,151.55,6.76175978]
[1745512607667,25.28,151.62,151.56,6.76175978]
[1745512607870,25.28,151.62,151.57,8.41048568]
[1745512608063,6.5933,151.61,151.57,8.2433259]
[1745512608258,6.5933,151.61,151.58,1.6487259]
[1745512608772,6.5933,151.61,151.59,8.40953067]
[1745512608965,6.5933,151.61,151.59,1.6487259]
[1745512609570,6.5935,151.6,151.57,6.5946]
[1745512609770,6.5935,151.6,151.58,6.76066672]
[1745512609969,6.5935,151.6,151.57,6.5946]
[1745512610174,6.5935,151.6,151.58,6.76172307]
[1745512610471,6.5932,151.61,151.59,1.64859681]
[1745512610871,6.5936,151.6,151.58,6.5942]
[1745512611173,6.5936,151.6,151.57,6.5946]
[1745512611372,6.5941,151.59,151.56,14.0423475]
[1745512611574,6.5941,151.59,151.57,8.40836964]
[1745512611772,39.3023475,151.62,151.57,1.64866839]
[1745512611973,39.3023475,151.62,151.54,14.0423475]
[1745512612268,39.3023475,151.62,151.55,6.76049408]
[1745512612473,6.5948,151.57,151.54,20.6382475]
[1745512612669,39.3023475,151.62,151.55,6.76111141]
[1745512612869,39.3023475,151.62,151.54,14.0423475]
[1745512613171,39.3023475,151.62,151.55,6.76090274]
[1745512613371,39.3023475,151.62,151.56,6.76114263]
[1745512613571,6.5944,151.58,151.55,6.5954]
[1745512613772,6.5944,151.58,151.56,6.76105871]
[1745512613973,6.5944,151.58,151.55,6.5954]
[1745512614271,6.5944,151.58,151.56,6.76111362]
[1745512614468,6.5944,151.58,151.55,6.5954]
[1745512614773,6.5944,151.58,151.56,6.76217979]
[1745512614971,6.5948,151.57,151.54,20.6382475]
[1745512615173,6.5948,151.57,151.55,6.76273837]
[1745512615374,6.5948,151.57,151.56,6.76273837]
[1745512615570,6.5944,151.58,151.55,6.76401509]
[1745512615778,6.5944,151.58,151.56,6.76401509]
[1745512615976,25.26,151.62,151.54,20.6382475]
[1745512616173,25.26,151.62,151.55,6.7647418]
[1745512616371,39.3023475,151.62,151.52,14.0423475]
[1745512616676,6.5959,151.55,151.53,6.76856154]
[1745512616877,25.26,151.57,151.5,14.0423475]
[1745512617072,4.0105,151.56,151.5,14.0423475]
[1745512617780,6.5968,151.53,151.5,20.6401475]
[1745512618178,4.0105,151.56,151.5,14.0423475]
[1745512618379,6.5968,151.53,151.5,20.6399475]
[1745512618576,4.0105,151.56,151.5,14.0423475]
[1745512618880,6.5979,151.5,151.48,14.0423475]
[1745512619186,25.26,151.52,151.45,14.0423475]
[1745512619389,6.5991,151.47,151.45,14.0423475]
[1745512619585,25.26,151.51,151.45,14.0423475]
[1745512619786,25.26,151.51,151.43,14.0423475]
[1745512620586,6.6004,151.45,151.43,14.0423475]
[1745512621786,6.6005,151.44,151.41,14.0423475]
[1745512622190,6.6001,151.45,151.41,14.0423475]
[1745512622378,1.9474,151.53,151.44,14.0423475]
[1745512622687,14.0423475,151.5,151.38,356.8966]
[1745512622883,29.1181,151.49,151.41,14.0423475]
[1745512623190,6.5998,151.46,151.41,14.0423475]
[1745512623382,6.5998,151.46,151.42,6.601]
[1745512623586,29.1181,151.49,151.41,14.0423475]
[1745512623884,14.0423475,151.48,151.38,25.28]
[1745512624088,14.0423475,151.46,151.37,14.0423475]
[1745512624287,27.2275,151.45,151.37,14.0423475]
[1745512624490,6.6018,151.41,151.38,6.6031]
[1745512624691,27.2275,151.45,151.39,14.0423475]
[1745512624891,6.5999,151.46,151.42,20.6435475]
[1745512625088,25.28,151.48,151.42,14.0423475]
[1745512625491,6.5996,151.47,151.43,1.65039844]
[1745512625689,25.28,151.48,151.44,1.65039844]
[1745512625893,6.6,151.46,151.44,1.65039844]
[1745512626091,25.28,151.48,151.44,1.65039844]
[1745512626487,6.5994,151.47,151.43,6.6007]
[1745512626991,25.28,151.48,151.42,20.6434475]
[1745512627390,25.28,151.48,151.43,1.65022659]
[1745512627590,6.6003,151.45,151.43,1.65022659]
[1745512627890,25.24,151.44,151.36,25.24]
[1745512628090,14.0423475,151.43,151.36,25.24]
[1745512628286,14.0423475,151.43,151.35,14.0423475]
[1745512628490,14.0423475,151.41,151.33,25.24]
[1745512628792,14.0423475,151.41,151.34,6.72305522]
[1745512628984,14.0423475,151.41,151.35,6.72305522]
[1745512629183,3.7883,151.42,151.36,20.76540272]
[1745512629384,25.24,151.44,151.41,6.6015]
[1745512629584,6.6003,151.45,151.4,14.0423475]
[1745512629782,39.2823475,151.48,151.4,14.0423475]
[1745512629984,39.2823475,151.48,151.41,6.6015]
[1745512630391,39.2823475,151.48,151.38,14.0423475]
[1745512630591,39.2823475,151.48,151.39,6.7147069]
[1745512630784,14.0423475,151.46,151.37,25.24]
[1745512630985,14.0423475,151.46,151.38,13.31846084]
[1745512631186,14.0423475,151.46,151.39,6.71536084]
[1745512631389,14.0423475,151.46,151.4,6.71536084]
[1745512631591,6.6011,151.43,151.39,6.6026]
[1745512631891,14.0423475,151.42,151.37,25.24]
[1745512632090,14.0423475,151.42,151.34,25.24]
[1745512632293,6.603,151.39,151.35,6.71698555]
[1745512632491,6.603,151.39,151.36,6.71698555]
[1745512632689,6.6031,151.38,151.34,31.8446]
[1745512632886,6.6031,151.38,151.35,6.71462898]
[1745512633090,6.6031,151.38,151.36,6.71462898]
[1745512633291,6.6031,151.38,151.35,6.6043]
[1745512633592,6.6031,151.38,151.36,6.71409098]
[1745512633792,6.6031,151.38,151.35,6.6043]
[1745512633993,17.9616475,151.42,151.34,25.24]
[1745512633994,17.9616475,151.42,151.36,13.31544457]
[1745512634193,17.9616475,151.42,151.34,25.24]
[1745512634490,17.9616475,151.42,151.35,6.71142454]
[1745512634796,17.9616475,151.42,151.36,6.71295514]
[1745512634998,17.9616475,151.42,151.35,6.6042]
[1745512635298,17.9616475,151.42,151.36,6.71352151]
[1745512635497,6.603,151.39,151.35,6.6042]
[1745512635694,17.9616475,151.42,151.36,6.71212825]
[1745512635896,6.6033,151.38,151.35,6.6042]
[1745512636095,6.6033,151.38,151.36,6.71241764]
[1745512636394,6.6038,151.37,151.34,25.24]
[1745512636595,6.6038,151.37,151.35,6.71057459]
[1745512636794,6.6038,151.37,151.34,25.24]
[1745512636990,6.6039,151.36,151.34,25.24]
[1745512637195,6.6039,151.36,151.31,25.26]
[1745512637396,39.3023475,151.4,151.32,6.71486485]
[1745512637595,6.6044,151.35,151.33,6.71486485]
[1745512637799,14.0423475,151.38,151.31,25.26]
[1745512638002,14.0423475,151.38,151.32,6.71511589]
[1745512638294,6.6051,151.34,151.31,6.6059]
[1745512638499,14.0423475,151.36,151.29,3.9786]
[1745512638800,14.0423475,151.34,151.28,25.26]
[1745512639395,5.9002,151.35,151.28,39.3023475]
[1745512639601,25.26,151.36,151.28,39.3023475]
[1745512639802,25.26,151.36,151.29,1.65147529]
[1745512640003,39.3023475,151.36,151.29,1.65147529]
[1745512640196,39.3023475,151.36,151.28,25.26]
[1745512640501,6.6055,151.33,151.3,6.6065]
[1745512640799,39.3023475,151.36,151.28,25.26]
[1745512641002,31.8641,151.36,151.33,6.605]
[1745512641200,25.26,151.39,151.32,14.0423475]
[1745512641599,6.6038,151.37,151.33,6.6048]
[1745512641801,25.26,151.39,151.32,39.3023475]
[1745512642500,25.26,151.39,151.33,1.65098954]
[1745512643101,25.26,151.39,151.32,39.3023475]
[1745512643497,6.6042,151.36,151.33,6.605]
[1745512643698,25.26,151.39,151.32,39.3023475]
[1745512644103,31.8629,151.39,151.36,6.6038]
[1745512644299,25.26,151.39,151.34,14.0423475]
[1745512644602,6.6027,151.39,151.36,6.6037]
[1745512644797,6.6027,151.39,151.35,1.65079132]
[1745512645296,6.6027,151.39,151.36,6.6036]
[1745512645501,6.6033,151.38,151.35,1.65079132]
[1745512645706,6.6033,151.38,151.35,6.6041]
[1745512646006,6.604,151.36,151.32,25.26]
[1745512646203,6.604,151.36,151.33,6.605]
[1745512646496,6.604,151.36,151.33,8.25581304]
[1745512646904,6.604,151.36,151.33,6.605]
[1745512647201,14.0423475,151.4,151.32,39.3023475]
[1745512647402,14.0423475,151.36,151.29,384.0195]
[1745512647702,39.3023475,151.36,151.29,1.8968]
[1745512647904,39.3023475,151.36,151.28,6.6073]
[1745512648100,39.3023475,151.36,151.27,25.26]
[1745512648417,14.0423475,151.34,151.27,6.6077]
[1745512648804,5.8958,151.35,151.26,14.0423475]
[1745512649005,5.8958,151.35,151.27,1.65152167]
[1745512649206,14.0423475,151.34,151.28,1.65152167]
[1745512649507,6.6068,151.3,151.28,1.65152167]
[1745512649908,14.0423475,151.34,151.24,43.2197475]
[1745512650107,14.0423475,151.34,151.25,6.68293079]
[1745512650306,14.0423475,151.34,151.24,43.2197475]
[1745512650607,6.6065,151.31,151.27,6.6075]
[1745512650807,6.6065,151.31,151.26,1.65162105]
[1745512651103,6.6065,151.31,151.28,6.6074]
[1745512651511,14.0423475,151.34,151.24,43.2197475]
[1745512651702,14.0423475,151.34,151.25,1.65171664]
[1745512652008,6.6068,151.3,151.27,6.6076]
[1745512654110,39.3023475,151.3,151.24,6.609]
[1745512654306,39.3023475,151.3,151.23,355.0]
[1745512654502,6.6083,151.27,151.24,8.2610514]
[1745512654711,39.3023475,151.3,151.24,1.6519514]
[1745512654910,39.3023475,151.3,151.21,25.26]
[1745512655305,39.3023475,151.3,151.22,6.69141314]
[1745512655610,6.6078,151.28,151.25,6.6085]
[1745512655909,25.26,151.3,151.23,1.65211091]
[1745512656113,25.26,151.31,151.24,20.72823802]
[1745512656410,25.26,151.34,151.26,14.0423475]
[1745512656810,6.6055,151.33,151.3,6.6062]
[1745512657512,31.865,151.34,151.31,6.606]
[1745512659311,31.865,151.34,151.32,1.65140983]
[1745512660018,31.865,151.34,151.31,6.606]
[1745512660211,25.26,151.34,151.32,6.6056]
[1745512660416,25.26,151.34,151.28,14.0423475]
[1745512660616,25.26,151.34,151.29,8.35445721]
[1745512660817,6.6055,151.33,151.3,13.30933613]
[1745512661017,6.6055,151.33,151.31,6.70303613]
[1745512661313,25.26,151.34,151.32,6.70914635]
[1745512661620,25.26,151.34,151.33,1.65142108]
[1745512661820,6.6069,151.3,151.27,6.6078]
[1745512662120,14.0423475,151.32,151.28,6.70926105]
[1745512662316,14.0423475,151.3,151.22,25.08]
[1745512662519,39.1223475,151.3,151.23,6.71503606]
[1745512662819,39.1223475,151.3,151.24,6.71503606]
[1745512663019,14.0423475,151.28,151.25,6.71503606]
[1745512663318,6.6089,151.25,151.22,6.6099]
[1745512663511,14.0423475,151.28,151.23,6.72772826]
[1745512663711,6.6087,151.25,151.24,6.72772826]
[1745512664321,6.6095,151.24,151.21,14.11172084]
[1745512664520,6.6095,151.24,151.22,6.73344348]
[1745512664726,6.6095,151.24,151.23,6.73344348]
[1745512664922,6.6096,151.23,151.21,7.50152084]
[1745512665123,6.6096,151.23,151.22,6.73536979]
[1745512666723,14.0423475,151.24,151.14,7.50152084]
[1745512666922,14.0423475,151.22,151.15,6.7341396]
[1745512667123,39.1423475,151.22,151.18,6.6114]
[1745512667321,39.1423475,151.22,151.19,6.7341396]
[1745512667624,39.1423475,151.22,151.16,6.6124]
[1745512667826,14.0423475,151.2,151.17,6.73501901]
[1745512668122,14.0423475,151.2,151.15,6.6129]
[1745512668424,6.6121,151.18,151.16,6.73908608]
[1745512668718,14.0423475,151.2,151.14,6.6133]
[1745512668918,14.0423475,151.2,151.13,2.0571]
[1745512669117,1.9059,151.21,151.13,16.0994475]
[1745512669325,1.9059,151.21,151.17,6.612]
[1745512669525,8.5167,151.21,151.17,6.612]
[1745512669918,1.9059,151.21,151.17,6.612]
[1745512670223,25.1,151.23,151.15,14.0423475]
[1745512670624,6.6103,151.22,151.19,6.6113]
[1745512670926,25.1,151.23,151.16,2.0471]
[1745512671319,31.7099,151.23,151.16,2.0471]
[1745512671825,31.7099,151.23,151.2,6.6109]
[1745512672326,25.1,151.25,151.22,6.6098]
[1745512672823,6.6092,151.24,151.19,14.0423475]
[1745512673225,31.7089,151.25,151.19,14.0423475]
[1745512673725,25.1,151.25,151.2,6.6107]
[1745512673925,25.1,151.25,151.18,25.1]
[1745512674126,25.1,151.25,151.19,1.65243591]
[1745512674326,14.0423475,151.24,151.19,1.65243591]
[1745512674529,6.6107,151.21,151.19,1.65243591]
[1745512674925,6.6107,151.21,151.2,1.65243591]
[1745512675927,6.6107,151.21,151.17,8.26453591]
[1745512676129,6.611,151.2,151.18,1.65243591]
[1745512677130,6.611,151.2,151.19,1.65243591]
[1745512677830,25.1,151.21,151.19,1.65243591]
[1745512678031,39.1423475,151.24,151.15,14.0423475]
[1745512678331,39.1423475,151.24,151.15,16.0857475]
[1745512678629,39.1423475,151.24,151.16,1.65243591]
[1745512678829,39.1423475,151.24,151.17,1.65243591]
[1745512679530,6.6112,151.2,151.18,1.65243591]
[1745512680327,39.1423475,151.24,151.18,1.65243591]
[1745512680532,25.1,151.24,151.18,1.65243591]
[1745512680732,25.1,151.24,151.19,6.6112]
[1745512681231,6.6103,151.22,151.2,1.65243591]
[1745512681430,39.1423475,151.24,151.2,1.65243591]
[1745512681933,39.1423475,151.24,151.21,1.65243591]
[1745512682335,6.6108,151.21,151.19,1.65243591]
[1745512683034,25.1,151.24,151.19,1.65243591]
[1745512683236,1.9292,151.26,151.2,1.65243591]
[1745512683532,1.9292,151.26,151.21,1.65243591]
[1745512683737,8.5377,151.26,151.23,6.6095]
[1745512684538,6.6085,151.26,151.23,6.6095]
[1745512684731,25.1,151.27,151.21,14.0423475]
[1745512685138,25.1,151.27,151.22,1.6522972]
[1745512685534,14.0423475,151.25,151.22,1.6522972]
[1745512686037,14.0423475,151.25,151.18,6.6116]
[1745512686433,6.6109,151.21,151.19,1.65260408]
[1745512686736,14.0423475,151.21,151.19,1.65260408]
[1745512686935,14.0423475,151.21,151.11,393.9823475]
[1745512687134,14.0423475,151.21,151.15,6.6129]
[1745512687335,14.0423475,151.21,151.16,1.65293177]
[1745512687536,6.6121,151.18,151.16,1.65293177]
[1745512688138,6.6121,151.18,151.17,1.65293177]
[1745512688342,39.1423475,151.23,151.17,1.65293177]
[1745512688538,25.1,151.23,151.18,1.65293177]
[1745512688942,6.6109,151.21,151.18,6.6115]
[1745512689241,25.1,151.23,151.18,6.6115]
[1745512689537,6.6103,151.22,151.19,6.6114]
[1745512690037,14.0423475,151.21,151.13,2.0571]
[1745512690340,14.0423475,151.21,151.14,1.65296858]
[1745512690635,6.6111,151.2,151.17,6.6122]
[1745512690841,6.6111,151.2,151.15,1.65296858]
[1745512691142,6.6114,151.19,151.16,8.26546858]
[1745512691636,6.6114,151.19,151.16,1.65296858]
[1745512691940,6.6114,151.19,151.17,1.65296858]
[1745512692443,6.6114,151.19,151.18,1.65296858]
[1745512693344,31.5714,151.19,151.18,1.65296858]
[1745512693744,6.6127,151.17,151.11,394.0023475]
[1745512694143,24.96,151.19,151.11,394.0023475]
[1745512694343,14.0423475,151.18,151.12,1.65319818]
[1745512694843,14.0423475,151.16,151.12,1.65319818]
[1745512695044,24.96,151.15,151.13,1.65319818]
[1745512695742,24.96,151.15,151.14,1.65319818]
[1745512696440,6.6121,151.18,151.15,6.6128]
[1745512696638,24.96,151.19,151.14,1.65319818]
[1745512697144,6.6125,151.17,151.14,8.26649818]
[1745512697542,6.6125,151.17,151.15,1.65319818]
[1745512698144,6.6125,151.17,151.16,1.65319818]
[1745512698344,24.96,151.19,151.16,1.65319818]
[1745512698540,24.96,151.19,151.17,1.65319818]
[1745512699444,6.6121,151.18,151.15,6.6129]
[1745512699943,24.96,151.19,151.15,6.6129]
[1745512700147,6.6123,151.17,151.14,6.6134]
[1745512700343,6.6123,151.17,151.15,1.65323156]
[1745512700642,6.612,151.18,151.15,8.26623156]
[1745512700842,24.96,151.19,151.16,1.65323156]
[1745512701044,44.7649475,151.22,151.16,1.65323156]
[1745512701345,14.0423475,151.2,151.16,1.65323156]
[1745512701846,6.6127,151.16,151.13,6.6137]
[1745512702345,6.6127,151.16,151.14,1.65331791]
[1745512702545,6.6127,151.16,151.14,8.26681791]
[1745512703042,14.0423475,151.2,151.15,6.6131]
[1745512703248,44.7649475,151.22,151.14,1.65331791]
[1745512703442,44.7649475,151.22,151.16,1.65331791]
[1745512703638,26.9565,151.22,151.15,15.69566541]
[1745512703845,26.9565,151.22,151.17,14.0423475]
[1745512703846,24.96,151.22,151.17,14.0423475]
[1745512704044,24.96,151.25,151.17,14.0423475]
[1745512704342,6.6101,151.23,151.19,6.6112]
[1745512704543,6.6101,151.23,151.2,1.65331791]
[1745512704743,3.9433,151.26,151.2,1.65331791]
[1745512704945,24.96,151.28,151.21,14.0423475]
[1745512705144,24.96,151.28,151.23,14.0423475]